fUSD/lending_fUSD_20250202
["ID","MTS","AMOUNT","RATE_DAILY","PERIOD"]
[351329431,1738516245791,-3472.18,0.00010958,2]
[351329434,1738516245811,-788.53,0.00010958,2]
[351329437,1738516245830,-3472.18,0.00010958,2]
[351329439,1738516245849,-3472.18,0.00010958,2]
[351329442,1738516245867,-500.87761041,0.00010958,2]
[351329445,1738516245885,-3472.18,0.00010958,2]
[351329448,1738516245904,-3472.18,0.00010958,2]
[351329451,1738516245922,-500.0,0.00010958,2]
[351329454,1738516245941,-3472.18,0.00010958,2]
[351329457,1738516245964,-3472.2829105,0.00010958,2]
[351329459,1738516245981,-3213.09,0.00010958,2]
[351329462,1738516245999,-500.0,0.00010958,2]
[351329464,1738516246016,-421.11857983,0.00010958,2]
[351329467,1738516246032,-500.0,0.00010958,2]
[351329469,1738516246050,-500.0,0.00010958,2]
[351329472,1738516246069,-500.0,0.00010958,2]
[351329474,1738516246086,-500.0,0.00010958,2]
[351329477,1738516246104,-500.0,0.00010958,2]
[351329480,1738516246127,-500.0,0.00010958,2]
[351329483,1738516246144,-500.0,0.00010958,2]
[351329485,1738516246161,-500.0,0.00010958,2]
[351329488,1738516246179,-472.743312,0.00010958,2]
[351329490,1738516246201,-500.0,0.00010958,2]
[351329493,1738516246220,-500.0,0.00010958,2]
[351329496,1738516246238,-500.0,0.00010958,2]
[351329498,1738516246255,-500.0,0.00010958,2]
[351329501,1738516246271,-3347.0,0.00010958,2]
[351329503,1738516246288,-515.72010547,0.00010958,2]
[351329506,1738516246307,-500.0,0.00010958,2]
[351329509,1738516246325,-500.0,0.00010958,2]
[351329511,1738516246343,-500.0,0.00010958,2]
[351329514,1738516246361,-1791.3,0.00010958,2]
[351329517,1738516246377,-1865.45,0.00010958,2]
[351329519,1738516246393,-500.55604105,0.00010958,2]
[351329522,1738516246409,-4126.51,0.00010958,2]
[351329525,1738516246424,-500.0,0.00010958,2]
[351329527,1738516246439,-500.0,0.00010958,2]
[351329530,1738516246459,-599.68879,0.00010958,2]
[351329532,1738516246476,-500.0,0.00010958,2]
[351329535,1738516246491,-1290.25,0.00010958,2]
[351329538,1738516246508,-506.10297003,0.00010958,2]
[351329540,1738516246525,-534.57,0.00010958,2]
[351329543,1738516246541,-500.0,0.00010958,2]
[351329546,1738516246557,-500.0,0.00010958,2]
[351329548,1738516246571,-500.0,0.00010958,2]
[351329551,1738516246588,-500.0,0.00010958,2]
[351329554,1738516246604,-500.0,0.00010958,2]
[351329556,1738516246621,-500.0,0.00010958,2]
[351329559,1738516246639,-500.0,0.00010958,2]
[351329561,1738516246655,-500.0,0.00010958,2]
[351329564,1738516246673,-2895.12,0.00010958,2]
[351329567,1738516246689,-4106.86,0.00010958,2]
[351329570,1738516246710,-1698.65,0.00010958,2]
[351329573,1738516246735,-500.0,0.00010958,2]
[351329577,1738516246762,-500.0,0.00010958,2]
[351329580,1738516246788,-448.017146,0.00010958,2]
[351329584,1738516246810,-500.0,0.00010958,2]
[351329586,1738516246824,-500.0,0.00010958,2]
[351329588,1738516246834,-855.64,0.00010958,2]
[351329590,1738516246844,-500.0,0.00010958,2]
[351329592,1738516246853,-500.0,0.00010958,2]
[351329609,1738516247142,-500.0,0.00010958,2]
[351329612,1738516247179,-7948.23,0.00010958,2]
[351329614,1738516247225,-3699.44,0.00010958,2]
[351329616,1738516247251,-1134.77,0.00010958,2]
[351329618,1738516247278,-1388.83,0.00010958,2]
[351329620,1738516247310,-500.0,0.00010958,2]
[351329622,1738516247339,-1267.53,0.00010958,2]
[351329624,1738516247352,-700.239809,0.00010958,2]
[351329626,1738516247361,-1281.92,0.00010958,2]
[351329628,1738516247372,-1852.27,0.00010958,2]
[351329630,1738516247381,-772.18,0.00010958,2]
[351329632,1738516247392,-500.0,0.00010958,2]
[351329634,1738516247402,-500.0,0.00010958,2]
[351329636,1738516247412,-22309.31,0.00010958,2]
[351329638,1738516247422,-10331.27,0.00010958,2]
[351329641,1738516247432,-3740.63,0.00010958,2]
[351329644,1738516247457,-500.0,0.00010958,2]
[351329645,1738516247466,-2548.06,0.00010958,2]
[351329647,1738516247477,-2430.52,0.00010958,2]
[351329649,1738516247486,-757.34,0.00010958,2]
[351329652,1738516247496,-500.0,0.00010958,2]
[351329654,1738516247505,-299.05880228,0.00010958,2]
[351329655,1738516247516,-500.0,0.00010958,2]
[351329658,1738516247527,-5491.14,0.00010958,2]
[351329660,1738516247537,-500.0,0.00010958,2]
[351329662,1738516247547,-3483.73,0.00010958,2]
[351329664,1738516247556,-500.0,0.00010958,2]
[351329666,1738516247566,-715.854792,0.00010958,2]
[351329668,1738516247575,-3375.4,0.00010958,2]
[351329670,1738516247585,-1965.31,0.00010958,2]
[351329671,1738516247596,-500.0,0.00010958,2]
[351329674,1738516247606,-573.22,0.00010958,2]
[351329676,1738516247616,-500.0,0.00010958,2]
[351329678,1738516247626,-500.0,0.00010958,2]
[351329679,1738516247636,-499.671825,0.00010958,2]
[351329682,1738516247645,-367.58600418,0.00010958,2]
[351329684,1738516247655,-5575.16,0.00010958,2]
[351329686,1738516247664,-500.0,0.00010958,2]
[351329688,1738516247675,-3861.12,0.00010958,2]
[351329690,1738516247686,-500.0,0.00010958,2]
[351329692,1738516247700,-500.0,0.00010958,2]
[351329694,1738516247709,-6565.29,0.00010958,2]
[351329696,1738516247719,-500.0,0.00010958,2]
[351329698,1738516247728,-500.0,0.00010958,2]
[351329700,1738516247738,-2279.37,0.00010958,2]
[351329701,1738516247747,-1098.28,0.00010958,2]
[351329703,1738516247756,-500.0,0.00010958,2]
[351329705,1738516247766,-500.0,0.00010958,2]
[351329707,1738516247776,-500.0,0.00010958,2]
[351329709,1738516247786,-5388.59,0.00010958,2]
[351329711,1738516247795,-500.0,0.00010958,2]
[351329714,1738516247804,-1360.61,0.00010958,2]
[351329715,1738516247814,-500.0,0.00010958,2]
[351329717,1738516247823,-500.0,0.00010958,2]
[351329719,1738516247832,-500.0,0.00010958,2]
[351329721,1738516247842,-500.0,0.00010958,2]
[351329723,1738516247851,-2681.64,0.00010958,2]
[351329725,1738516247861,-2681.64,0.00010958,2]
[351329726,1738516247871,-658.158992,0.00010958,2]
[351329727,1738516247881,-2681.64,0.00010958,2]
[351329728,1738516247891,-2681.64,0.00010958,2]
[351329730,1738516247900,-2681.64,0.00010958,2]
[351329732,1738516247910,-2681.64,0.00010958,2]
[351329734,1738516247919,-2681.64,0.00010958,2]
[351329736,1738516247929,-2681.64,0.00010958,2]
[351329738,1738516247939,-500.0,0.00010958,2]
[351329740,1738516247951,-2681.64,0.00010958,2]
[351329742,1738516247961,-2681.64,0.00010958,2]
[351329744,1738516247971,-2681.64,0.00010958,2]
[351329746,1738516247980,-2681.64,0.00010958,2]
[351329748,1738516247993,-469.57071,0.00010958,2]
[351329750,1738516248003,-2681.64,0.00010958,2]
[351329752,1738516248012,-500.0,0.00010958,2]
[351329754,1738516248022,-2681.64,0.00010958,2]
[351329756,1738516248034,-2722.34,0.00010958,2]
[351329758,1738516248043,-2681.64,0.00010958,2]
[351329760,1738516248054,-864.3,0.00010958,2]
[351329762,1738516248065,-500.0,0.00010958,2]
[351329764,1738516248077,-2681.64,0.00010958,2]
[351329766,1738516248086,-2681.64,0.00010958,2]
[351329768,1738516248096,-500.0,0.00010958,2]
[351329770,1738516248107,-3044.13,0.00010958,2]
[351329772,1738516248116,-527.97194949,0.00010958,2]
[351329774,1738516248129,-500.0,0.00010958,2]
[351329776,1738516248138,-729.59,0.00010958,2]
[351329778,1738516248148,-2681.64,0.00010958,2]
[351329780,1738516248157,-2681.64,0.00010958,2]
[351329782,1738516248166,-2681.64,0.00010958,2]
[351329784,1738516248176,-2681.64,0.00010958,2]
[351329786,1738516248186,-2681.64,0.00010958,2]
[351329788,1738516248197,-2681.64,0.00010958,2]
[351329790,1738516248207,-2681.69917655,0.00010958,2]
[351329792,1738516248218,-500.0,0.00010958,2]
[351329794,1738516248227,-500.0,0.00010958,2]
[351329796,1738516248238,-3192.39,0.00010958,2]
[351329798,1738516248248,-214.89436831,0.00010958,2]
[351329800,1738516248260,-3427.67,0.00010958,2]
[351329802,1738516248270,-1342.13,0.00010958,2]
[351329804,1738516248280,-2027.55,0.00010958,2]
[351329806,1738516248290,-502.54681751,0.00010958,2]
[351329808,1738516248301,-500.0,0.00010958,2]
[351329810,1738516248311,-500.0,0.00010958,2]
[351329812,1738516248321,-500.0,0.00010958,2]
[351329814,1738516248331,-500.0,0.00010958,2]
[351329816,1738516248342,-4252.01,0.00010958,2]
[351329818,1738516248351,-2583.64,0.00010958,2]
[351329820,1738516248361,-10284.26,0.00010958,2]
[351329822,1738516248371,-2652.56,0.00010958,2]
[351329824,1738516248381,-555.992645,0.00010958,2]
[351329826,1738516248390,-500.0,0.00010958,2]
[351329828,1738516248400,-12127.67,0.00010958,2]
[351329830,1738516248411,-500.0,0.00010958,2]
[351329832,1738516248420,-633.56,0.00010958,2]
[351329834,1738516248430,-1427.7,0.00010958,2]
[351329835,1738516248440,-576.949377,0.00010958,2]
[351329838,1738516248452,-500.0,0.00010958,2]
[351329839,1738516248462,-500.0,0.00010958,2]
[351329842,1738516248472,-7300.52,0.00010958,2]
[351329844,1738516248483,-500.0,0.00010958,2]
[351329846,1738516248492,-4063.4,0.00010958,2]
[351329848,1738516248502,-6290.38,0.00010958,2]
[351329850,1738516248512,-569.24572062,0.00010958,2]
[351329852,1738516248522,-824.29,0.00010958,2]
[351329854,1738516248532,-1460.02,0.00010958,2]
[351329856,1738516248542,-500.0,0.00010958,2]
[351329857,1738516248552,-500.0,0.00010958,2]
[351329859,1738516248562,-500.0,0.00010958,2]
[351329861,1738516248572,-500.0,0.00010958,2]
[351329862,1738516248582,-500.0,0.00010958,2]
[351329863,1738516248591,-2235.5,0.00010958,2]
[351329864,1738516248601,-1908.31,0.00010958,2]
[351329865,1738516248611,-7227.41,0.00010958,2]
[351329866,1738516248621,-500.0,0.00010958,2]
[351329867,1738516248631,-500.0,0.00010958,2]
[351329868,1738516248641,-6243.33,0.00010958,2]
[351329869,1738516248650,-2827.59,0.00010958,2]
[351329870,1738516248660,-500.0,0.00010958,2]
[351329871,1738516248670,-571.56294,0.00010958,2]
[351329872,1738516248681,-911.77,0.00010958,2]
[351329873,1738516248691,-500.0,0.00010958,2]
[351329874,1738516248705,-1653.28,0.00010958,2]
[351329875,1738516248717,-500.0,0.00010958,2]
[351329876,1738516248727,-500.0,0.00010958,2]
[351329877,1738516248738,-7297.29,0.00010958,2]
[351329878,1738516248749,-500.0,0.00010958,2]
[351329879,1738516248761,-840.74,0.00010958,2]
[351329880,1738516248773,-500.0,0.00010958,2]
[351329881,1738516248783,-500.0,0.00010958,2]
[351329882,1738516248794,-500.0,0.00010958,2]
[351329883,1738516248804,-500.0,0.00010958,2]
[351329884,1738516248815,-500.0,0.00010958,2]
[351329885,1738516248825,-5332.32,0.00010958,2]
[351329887,1738516248836,-903.79,0.00010958,2]
[351329888,1738516248847,-1169.62,0.00010958,2]
[351329890,1738516248857,-3045.71,0.00010958,2]
[351329892,1738516248868,-2256.46,0.00010958,2]
[351329894,1738516248878,-497.83196936,0.00010958,2]
[351329896,1738516248888,-500.0,0.00010958,2]
[351329898,1738516248899,-505.63151589,0.00010958,2]
[351329899,1738516248910,-1943.86,0.00010958,2]
[351329900,1738516248921,-500.0,0.00010958,2]
[351329901,1738516248931,-2045.5,0.00010958,2]
[351329902,1738516248942,-454.142217,0.00010958,2]
[351329903,1738516248955,-151.187559,0.00010958,2]
[351329904,1738516248965,-1318.91,0.00010958,2]
[351329905,1738516248975,-500.0,0.00010958,2]
[351329906,1738516248987,-500.0,0.00010958,2]
[351329907,1738516248998,-500.0,0.00010958,2]
[351329908,1738516249009,-554.542878,0.00010958,2]
[351329909,1738516249019,-500.0,0.00010958,2]
[351329910,1738516249032,-500.0,0.00010958,2]
[351329911,1738516249043,-2414.38,0.00010958,2]
[351329912,1738516249054,-1787.61,0.00010958,2]
[351329913,1738516249064,-719.96,0.00010958,2]
[351329914,1738516249076,-500.0,0.00010958,2]
[351329915,1738516249087,-500.0,0.00010958,2]
[351329916,1738516249098,-1536.13,0.00010958,2]
[351329917,1738516249109,-618.23,0.00010958,2]
[351329918,1738516249120,-1518.86,0.00010958,2]
[351329919,1738516249131,-628.12,0.00010958,2]
[351329920,1738516249141,-500.0,0.00010958,2]
[351329921,1738516249151,-11569.23,0.00010958,2]
[351329922,1738516249160,-2634.47,0.00010958,2]
[351329923,1738516249170,-826.16,0.00010958,2]
[351329924,1738516249180,-500.0,0.00010958,2]
[351329925,1738516249190,-500.0,0.00010958,2]
[351329926,1738516249203,-3226.39,0.00010958,2]
[351329927,1738516249213,-5191.49,0.00010958,2]
[351329928,1738516249223,-3073.21,0.00010958,2]
[351329929,1738516249233,-6920.81,0.00010958,2]
[351329930,1738516249243,-500.0,0.00010958,2]
[351329931,1738516249253,-500.0,0.00010958,2]
[351329932,1738516249263,-7847.47,0.00010958,2]
[351329933,1738516249274,-490.280531,0.00010958,2]
[351329934,1738516249284,-500.0,0.00010958,2]
[351329935,1738516249296,-500.0,0.00010958,2]
[351329936,1738516249306,-2251.09,0.00010958,2]
[351329937,1738516249317,-500.0,0.00010958,2]
[351329938,1738516249328,-614.64,0.00010958,2]
[351329939,1738516249339,-1544.32,0.00010958,2]
[351329940,1738516249351,-500.0,0.00010958,2]
[351329941,1738516249362,-500.0,0.00010958,2]
[351329942,1738516249374,-708.79,0.00010958,2]
[351329943,1738516249387,-500.0,0.00010958,2]
[351329944,1738516249399,-500.0,0.00010958,2]
[351329945,1738516249410,-2556.72,0.00010958,2]
[351329946,1738516249421,-500.0,0.00010958,2]
[351329947,1738516249573,-500.0,0.00010958,2]
[351329948,1738516249584,-2684.73,0.00010959,2]
[351329949,1738516249594,-150.0,0.00010959,2]
[351329950,1738516249604,-250.0,0.00010989,2]
[351329951,1738516249614,-1000.0,0.00011089,2]
[351329952,1738516249624,-300.0,0.00011093,2]
[351329953,1738516249634,-166.66,0.00011093,2]
[351329954,1738516249644,-500.0,0.00011094,2]
[351329955,1738516249654,-500.0,0.00011094,2]
[351329956,1738516249664,-500.0,0.00011094,2]
[351329957,1738516249673,-500.0,0.00011094,2]
[351329958,1738516249683,-278.34557965,0.00011094,2]
[351329959,1738516249692,-500.0,0.00011094,2]
[351329960,1738516249704,-500.0,0.00011094,2]
[351329961,1738516249714,-500.0,0.00011094,2]
[351329962,1738516249723,-500.0,0.00011094,2]
[351329963,1738516249733,-500.0,0.00011094,2]
[351329964,1738516249743,-500.0,0.00011094,2]
[351329965,1738516249752,-500.0,0.00011094,2]
[351329966,1738516249762,-500.0,0.00011094,2]
[351329967,1738516249771,-500.0,0.00011094,2]
[351329968,1738516249780,-500.0,0.00011094,2]
[351329969,1738516249795,-500.0,0.00011094,2]
[351329970,1738516249816,-500.0,0.00011094,2]
[351329971,1738516249837,-500.0,0.00011094,2]
[351329972,1738516249860,-500.0,0.00011094,2]
[351329973,1738516249881,-500.0,0.00011094,2]
[351329974,1738516249901,-500.0,0.00011094,2]
[351329975,1738516249920,-166.05704069,0.00011094,2]
[351329976,1738516249939,-500.0,0.00011094,2]
[351329977,1738516249961,-500.0,0.00011094,2]
[351329978,1738516249980,-500.0,0.00011094,2]
[351329979,1738516250002,-655.84,0.00011094,2]
[351329980,1738516250024,-500.0,0.00011094,2]
[351329981,1738516250045,-500.0,0.00011094,2]
[351329982,1738516250068,-500.0,0.00011094,2]
[351329983,1738516250085,-500.0,0.00011094,2]
[351329984,1738516250095,-500.0,0.00011094,2]
[351329985,1738516250106,-544.61,0.00011094,2]
[351329986,1738516250116,-500.0,0.00011094,2]
[351329987,1738516250127,-500.0,0.00011094,2]
[351329988,1738516250136,-498.17943016,0.00011094,2]
[351329989,1738516250147,-500.0,0.00011094,2]
[351329990,1738516250157,-500.0,0.00011094,2]
[351329991,1738516250166,-684.7,0.00011094,2]
[351329992,1738516250176,-500.0,0.00011094,2]
[351329993,1738516250186,-500.0,0.00011094,2]
[351329994,1738516250195,-500.0,0.00011094,2]
[351329995,1738516250207,-500.0,0.00011094,2]
[351329996,1738516250217,-500.0,0.00011094,2]
[351329997,1738516250228,-500.0,0.00011094,2]
[351329998,1738516250239,-500.0,0.00011094,2]
[351329999,1738516250250,-500.0,0.00011094,2]
[351330000,1738516250260,-500.0,0.00011094,2]
[351330001,1738516250270,-500.0,0.00011094,2]
[351330002,1738516250279,-1092.39,0.00011094,2]
[351330003,1738516250289,-500.0,0.00011094,2]
[351330004,1738516250299,-500.0,0.00011094,2]
[351330005,1738516250308,-654.63,0.00011094,2]
[351330006,1738516250318,-500.0,0.00011094,2]
[351330007,1738516250328,-624.83,0.00011094,2]
[351330008,1738516250337,-484.19098915,0.00011094,2]
[351330009,1738516250347,-500.0,0.00011094,2]
[351330010,1738516250356,-512.17450998,0.00011094,2]
[351330011,1738516250365,-500.0,0.00011094,2]
[351330012,1738516250375,-500.0,0.00011094,2]
[351330013,1738516250384,-560.19,0.00011094,2]
[351330014,1738516250393,-500.0,0.00011094,2]
[351330015,1738516250403,-500.0,0.00011094,2]
[351330016,1738516250412,-500.0,0.00011094,2]
[351330017,1738516250421,-500.0,0.00011094,2]
[351330018,1738516250430,-500.0,0.00011094,2]
[351330019,1738516250440,-500.0,0.00011094,2]
[351330020,1738516250450,-500.0,0.00011094,2]
[351330021,1738516250459,-1210.49,0.00011094,2]
[351330022,1738516250471,-500.0,0.00011094,2]
[351330023,1738516250480,-500.0,0.00011094,2]
[351330024,1738516250489,-500.0,0.00011094,2]
[351330025,1738516250498,-554.48,0.00011094,2]
[351330026,1738516250508,-500.0,0.00011094,2]
[351330027,1738516250517,-522.52734474,0.00011094,2]
[351330028,1738516250527,-500.0,0.00011094,2]
[351330029,1738516250536,-500.0,0.00011094,2]
[351330030,1738516250545,-500.0,0.00011094,2]
[351330031,1738516250554,-647.80635776,0.00011094,2]
[351330032,1738516250563,-500.0,0.00011094,2]
[351330033,1738516250573,-500.0,0.00011094,2]
[351330034,1738516250582,-500.0,0.00011094,2]
[351330035,1738516250592,-500.0,0.00011094,2]
[351330036,1738516250601,-500.0,0.00011094,2]
[351330037,1738516250611,-713.02,0.00011094,2]
[351330038,1738516250620,-500.0,0.00011094,2]
[351330039,1738516250630,-500.0,0.00011094,2]
[351330040,1738516250639,-500.0,0.00011094,2]
[351330041,1738516250648,-500.0,0.00011094,2]
[351330042,1738516250657,-500.0,0.00011094,2]
[351330043,1738516250667,-1374.75,0.00011094,2]
[351330044,1738516250676,-710.67,0.00011094,2]
[351330045,1738516250686,-500.0,0.00011094,2]
[351330046,1738516250696,-479.15473366,0.00011094,2]
[351330047,1738516250709,-500.0,0.00011094,2]
[351330048,1738516250719,-500.0,0.00011094,2]
[351330049,1738516250729,-500.0,0.00011094,2]
[351330050,1738516250739,-500.0,0.00011094,2]
[351330051,1738516250750,-500.0,0.00011094,2]
[351330052,1738516250766,-500.0,0.00011094,2]
[351330053,1738516250787,-1427.71,0.00011094,2]
[351330054,1738516250809,-500.0,0.00011094,2]
[351330055,1738516250830,-500.0,0.00011094,2]
[351330056,1738516250851,-500.0,0.00011094,2]
[351330057,1738516250873,-500.0,0.00011094,2]
[351330058,1738516250895,-500.0,0.00011094,2]
[351330059,1738516250918,-500.0,0.00011094,2]
[351330060,1738516250941,-1604.84,0.00011094,2]
[351330061,1738516250965,-500.0,0.00011094,2]
[351330062,1738516250985,-500.0,0.00011094,2]
[351330063,1738516251006,-500.0,0.00011094,2]
[351330064,1738516251027,-500.0,0.00011094,2]
[351330065,1738516251044,-500.0,0.00011094,2]
[351330066,1738516251055,-1584.96,0.00011094,2]
[351330067,1738516251065,-500.0,0.00011094,2]
[351330068,1738516251074,-500.0,0.00011094,2]
[351330069,1738516251083,-500.0,0.00011094,2]
[351330070,1738516251092,-876.74,0.00011094,2]
[351330071,1738516251102,-569.44,0.00011094,2]
[351330072,1738516251111,-500.0,0.00011094,2]
[351330073,1738516251121,-568.65,0.00011094,2]
[351330074,1738516251131,-527.8646462,0.00011094,2]
[351330075,1738516251141,-500.0,0.00011094,2]
[351330076,1738516251150,-504.66015886,0.00011094,2]
[351330077,1738516251159,-500.0,0.00011094,2]
[351330078,1738516251168,-820.93,0.00011094,2]
[351330079,1738516251178,-716.72,0.00011094,2]
[351330080,1738516251188,-500.0,0.00011094,2]
[351330081,1738516251199,-500.0,0.00011094,2]
[351330082,1738516251212,-500.0,0.00011094,2]
[351330083,1738516251222,-500.0,0.00011094,2]
[351330084,1738516251233,-530.72788645,0.00011094,2]
[351330085,1738516251243,-500.0,0.00011094,2]
[351330086,1738516251252,-500.0,0.00011094,2]
[351330087,1738516251262,-648.71,0.00011094,2]
[351330088,1738516251272,-500.0,0.00011094,2]
[351330089,1738516251281,-500.0,0.00011094,2]
[351330090,1738516251290,-500.0,0.00011094,2]
[351330091,1738516251299,-500.0,0.00011094,2]
[351330092,1738516251309,-500.0,0.00011094,2]
[351330093,1738516251318,-500.0,0.00011094,2]
[351330094,1738516251328,-2106.98,0.00011094,2]
[351330095,1738516251338,-500.0,0.00011094,2]
[351330096,1738516251348,-500.0,0.00011094,2]
[351330097,1738516251358,-986.39,0.00011094,2]
[351330098,1738516251368,-500.0,0.00011094,2]
[351330099,1738516251378,-500.0,0.00011094,2]
[351330100,1738516251387,-500.0,0.00011094,2]
[351330101,1738516251396,-1832.2,0.00011094,2]
[351330102,1738516251406,-500.0,0.00011094,2]
[351330103,1738516251416,-500.0,0.00011094,2]
[351330104,1738516251435,-500.0,0.00011094,2]
[351330105,1738516251475,-500.0,0.00011094,2]
[351330106,1738516251496,-500.0,0.00011094,2]
[351330107,1738516251517,-500.0,0.00011094,2]
[351330108,1738516251544,-500.0,0.00011094,2]
[351330109,1738516251568,-500.0,0.00011094,2]
[351330110,1738516251591,-500.0,0.00011094,2]
[351330111,1738516251612,-509.41253697,0.00011094,2]
[351330112,1738516251635,-500.0,0.00011094,2]
[351330113,1738516251664,-500.0,0.00011094,2]
[351330114,1738516251694,-1788.45,0.00011094,2]
[351330115,1738516251730,-622.54486237,0.00011094,2]
[351330116,1738516251741,-500.0,0.00011094,2]
[351330117,1738516251751,-500.0,0.00011094,2]
[351330118,1738516251761,-514.68252725,0.00011094,2]
[351330119,1738516251771,-500.0,0.00011094,2]
[351330120,1738516251781,-593.9,0.00011094,2]
[351330121,1738516251790,-500.0,0.00011094,2]
[351330122,1738516251801,-500.0,0.00011094,2]
[351330123,1738516251810,-500.0,0.00011094,2]
[351330124,1738516251819,-500.0,0.00011094,2]
[351330125,1738516251827,-500.0,0.00011094,2]
[351330126,1738516251836,-500.0,0.00011094,2]
[351330127,1738516251845,-836.62,0.00011094,2]
[351330128,1738516251854,-500.0,0.00011094,2]
[351330129,1738516251864,-500.0,0.00011094,2]
[351330130,1738516251873,-500.0,0.00011094,2]
[351330131,1738516251883,-500.0,0.00011094,2]
[351330132,1738516251893,-500.0,0.00011094,2]
[351330133,1738516251902,-500.0,0.00011094,2]
[351330134,1738516251911,-1413.27,0.00011094,2]
[351330135,1738516251920,-500.0,0.00011094,2]
[351330136,1738516251929,-500.0,0.00011094,2]
[351330137,1738516251938,-500.0,0.00011094,2]
[351330138,1738516251952,-500.0,0.00011094,2]
[351330139,1738516251962,-500.0,0.00011094,2]
[351330140,1738516251970,-500.0,0.00011094,2]
[351330141,1738516251979,-500.0,0.00011094,2]
[351330142,1738516251991,-1365.43,0.00011094,2]
[351330143,1738516252001,-500.0,0.00011094,2]
[351330144,1738516252011,-521.51172321,0.00011094,2]
[351330145,1738516252020,-500.0,0.00011094,2]
[351330146,1738516252033,-500.0,0.00011094,2]
[351330147,1738516252043,-500.0,0.00011094,2]
[351330148,1738516252052,-500.0,0.00011094,2]
[351330149,1738516252063,-500.0,0.00011094,2]
[351330150,1738516252072,-730.63,0.00011094,2]
[351330151,1738516252082,-500.0,0.00011094,2]
[351330152,1738516252092,-500.0,0.00011094,2]
[351330153,1738516252101,-500.0,0.00011094,2]
[351330154,1738516252111,-769.72,0.00011094,2]
[351330155,1738516252121,-500.0,0.00011094,2]
[351330156,1738516252131,-500.0,0.00011094,2]
[351330157,1738516252142,-500.0,0.00011094,2]
[351330158,1738516252152,-435.35749561,0.00011094,2]
[351330159,1738516252161,-500.0,0.00011094,2]
[351330160,1738516252171,-500.0,0.00011094,2]
[351330161,1738516252180,-500.0,0.00011094,2]
[351330162,1738516252190,-500.0,0.00011094,2]
[351330163,1738516252202,-500.0,0.00011094,2]
[351330164,1738516252211,-500.0,0.00011094,2]
[351330165,1738516252221,-662.11,0.00011094,2]
[351330166,1738516252230,-500.0,0.00011094,2]
[351330167,1738516252239,-500.0,0.00011094,2]
[351330168,1738516252249,-500.0,0.00011094,2]
[351330169,1738516252258,-500.0,0.00011094,2]
[351330170,1738516252268,-500.0,0.00011094,2]
[351330171,1738516252278,-500.0,0.00011094,2]
[351330172,1738516252289,-500.0,0.00011094,2]
[351330173,1738516252298,-500.0,0.00011094,2]
[351330174,1738516252307,-500.0,0.00011094,2]
[351330175,1738516252316,-500.0,0.00011094,2]
[351330176,1738516252326,-500.0,0.00011094,2]
[351330177,1738516252335,-500.0,0.00011094,2]
[351330178,1738516252345,-732.02,0.00011094,2]